[Event "Late-Titled-Tuesday-Blitz-March-05-2024"]
[Site "Chess.com"]
[Date "2024.03.05"]
[Round "4"]
[White "MusicCityMaster"]
[Black "ukchessbomber"]
[Result "0-1"]
[WhiteElo "2497"]
[BlackElo "2661"]
[TimeControl "180+1"]
[EndTime "14:39:17 PST"]
[Termination "ukchessbomber won by resignation"]

1. d4 {[%clk 0:03:00.9]} 1... b5 {[%clk 0:02:59.9]} 2. e4 {[%clk 0:02:59.8]}
2... Bb7 {[%clk 0:03:00.5]} 3. Bd3 {[%clk 0:02:59.6]} 3... e6 {[%clk 0:03:00.5]}
4. Nf3 {[%clk 0:02:55.4]} 4... Nf6 {[%clk 0:03:00.4]} 5. Qe2 {[%clk 0:02:54.9]}
5... a6 {[%clk 0:03:00.4]} 6. c3 {[%clk 0:02:51.4]} 6... d5 {[%clk 0:03:00.7]}
7. e5 {[%clk 0:02:51.1]} 7... Nfd7 {[%clk 0:03:00.9]} 8. O-O {[%clk 0:02:38.7]}
8... Be7 {[%clk 0:03:01]} 9. Nbd2 {[%clk 0:02:30.5]} 9... c5 {[%clk 0:03:01.1]}
10. dxc5 {[%clk 0:02:22.3]} 10... Nxc5 {[%clk 0:03:00.8]} 11. Bc2 {[%clk
0:02:22.4]} 11... Nc6 {[%clk 0:03:01.3]} 12. Nb3 {[%clk 0:02:19.2]} 12... Qc7
{[%clk 0:02:58.6]} 13. Nbd4 {[%clk 0:02:17.2]} 13... Nxd4 {[%clk 0:02:53.9]} 14.
cxd4 {[%clk 0:02:15.8]} 14... Ne4 {[%clk 0:02:54.8]} 15. Bd3 {[%clk 0:02:07.3]}
15... O-O {[%clk 0:02:54.2]} 16. Bf4 {[%clk 0:02:06]} 16... Rac8 {[%clk
0:02:50.6]} 17. h4 {[%clk 0:01:59.1]} 17... h6 {[%clk 0:02:50]} 18. h5 {[%clk
0:01:58.8]} 18... Qa5 {[%clk 0:02:49.2]} 19. Qe3 {[%clk 0:01:43.2]} 19... Rfe8
{[%clk 0:02:44.7]} 20. g4 {[%clk 0:01:41.8]} 20... Qb6 {[%clk 0:02:18.8]} 21.
Kh2 {[%clk 0:01:30.4]} 21... Qd8 {[%clk 0:01:51.6]} 22. Rg1 {[%clk 0:01:26]}
22... Bg5 {[%clk 0:01:48.1]} 23. Bxg5 {[%clk 0:01:16.2]} 23... Nxg5 {[%clk
0:01:47.3]} 24. Nd2 {[%clk 0:01:07.1]} 24... f6 {[%clk 0:01:39.5]} 25. f4 {[%clk
0:01:04.8]} 25... Ne4 {[%clk 0:01:39.8]} 26. Nf3 {[%clk 0:00:50]} 26... Rf8
{[%clk 0:01:10.6]} 27. Rg2 {[%clk 0:00:46]} 27... Rc7 {[%clk 0:01:10.3]} 28.
exf6 {[%clk 0:00:39.5]} 28... Qxf6 {[%clk 0:01:08.8]} 29. g5 {[%clk 0:00:30.7]}
29... Qxf4+ {[%clk 0:00:58.1]} 30. Qxf4 {[%clk 0:00:31.6]} 30... Rxf4 {[%clk
0:00:58.9]} 31. Bxe4 {[%clk 0:00:28.8]} 31... dxe4 {[%clk 0:00:59.8]} 32. Ne5
{[%clk 0:00:27.6]} 32... Rh4+ {[%clk 0:00:38.1]} 33. Kg3 {[%clk 0:00:27.8]}
33... hxg5 {[%clk 0:00:35.7]} 34. Rh2 {[%clk 0:00:22.4]} 34... Rxh2 {[%clk
0:00:32.7]} 35. Kxh2 {[%clk 0:00:23.3]} 35... Rc2+ {[%clk 0:00:32.9]} 36. Kg3
{[%clk 0:00:23.2]} 36... e3 {[%clk 0:00:33.4]} 37. Re1 {[%clk 0:00:21.4]} 37...
Rg2+ {[%clk 0:00:24]} 38. Kh3 {[%clk 0:00:20.5]} 38... e2 {[%clk 0:00:23.6]} 39.
Ng4 {[%clk 0:00:18.1]} 39... Bf3 {[%clk 0:00:19.3]} 40. Nh2 {[%clk 0:00:18.1]}
40... g4+ {[%clk 0:00:17.1]} 41. Nxg4 {[%clk 0:00:12.7]} 41... Rxg4 {[%clk
0:00:16.9]} 42. h6 {[%clk 0:00:11.8]} 42... gxh6 {[%clk 0:00:16.8]} 0-1

[Event "Late-Titled-Tuesday-Blitz-March-05-2024"]
[Site "Chess.com"]
[Date "2024.03.05"]
[Round "4"]
[White "SchmakAttack"]
[Black "SpeedofLight0"]
[Result "0-1"]
[WhiteElo "2816"]
[BlackElo "3097"]
[TimeControl "180+1"]
[EndTime "14:39:22 PST"]
[Termination "SpeedofLight0 won by resignation"]

1. d4 {[%clk 0:03:00.9]} 1... d6 {[%clk 0:02:58.2]} 2. c4 {[%clk 0:03:00.5]}
2... g6 {[%clk 0:02:57.1]} 3. Nc3 {[%clk 0:03:00]} 3... Bg7 {[%clk 0:02:57.3]}
4. g3 {[%clk 0:02:59.2]} 4... Bd7 {[%clk 0:02:57.2]} 5. Bg2 {[%clk 0:02:58.7]}
5... Qc8 {[%clk 0:02:57.9]} 6. e4 {[%clk 0:02:47.1]} 6... Nc6 {[%clk 0:02:57.2]}
7. Nf3 {[%clk 0:02:34.5]} 7... Bh3 {[%clk 0:02:53]} 8. O-O {[%clk 0:02:33.1]}
8... h5 {[%clk 0:02:53]} 9. d5 {[%clk 0:02:07.9]} 9... Ne5 {[%clk 0:02:52.8]}
10. Bxh3 {[%clk 0:02:01.4]} 10... Qxh3 {[%clk 0:02:51.4]} 11. Ng5 {[%clk
0:02:01.2]} 11... Qd7 {[%clk 0:02:46.8]} 12. f4 {[%clk 0:01:49.8]} 12... Nxc4
{[%clk 0:02:46.5]} 13. Qd3 {[%clk 0:01:41.2]} 13... Nb6 {[%clk 0:02:42.9]} 14.
e5 {[%clk 0:01:41.4]} 14... Qf5 {[%clk 0:02:25.2]} 15. Qb5+ {[%clk 0:01:20.8]}
15... Kf8 {[%clk 0:02:23.5]} 16. a4 {[%clk 0:00:58.5]} 16... a6 {[%clk
0:02:02.4]} 17. Qe2 {[%clk 0:00:57.2]} 17... Nh6 {[%clk 0:01:52.3]} 18. a5
{[%clk 0:00:51.4]} 18... Nd7 {[%clk 0:01:48.4]} 19. e6 {[%clk 0:00:49.2]} 19...
Nc5 {[%clk 0:01:38.2]} 20. Be3 {[%clk 0:00:37]} 20... f6 {[%clk 0:01:23.2]} 21.
Bxc5 {[%clk 0:00:30.7]} 21... dxc5 {[%clk 0:01:24.1]} 22. Nge4 {[%clk
0:00:25.1]} 22... h4 {[%clk 0:01:14.8]} 23. Nxc5 {[%clk 0:00:23.6]} 23... hxg3
{[%clk 0:01:09.1]} 24. hxg3 {[%clk 0:00:24.5]} 24... Ng4 {[%clk 0:01:09.4]} 25.
N5e4 {[%clk 0:00:14.3]} 25... Qh5 {[%clk 0:01:04.2]} 26. Kg2 {[%clk 0:00:03.5]}
26... Qh3+ {[%clk 0:00:52.4]} 27. Kf3 {[%clk 0:00:03.6]} 27... Nh2+ {[%clk
0:00:51.4]} 28. Ke3 {[%clk 0:00:04.2]} 28... f5 {[%clk 0:00:44.7]} 29. Ng5
{[%clk 0:00:02.5]} 29... Qxg3+ {[%clk 0:00:43.9]} 30. Nf3 {[%clk 0:00:03.1]}
30... Ng4+ {[%clk 0:00:40.1]} 31. Kd2 {[%clk 0:00:02.5]} 31... Qxf4+ {[%clk
0:00:40.1]} 32. Kc2 {[%clk 0:00:03.3]} 32... Ne3+ {[%clk 0:00:39.5]} 33. Kb3
{[%clk 0:00:03.9]} 33... Nxf1 {[%clk 0:00:34.6]} 34. Rxf1 {[%clk 0:00:04.8]}
34... Rd8 {[%clk 0:00:27]} 35. Rg1 {[%clk 0:00:05]} 35... Bxc3 {[%clk
0:00:24.5]} 36. bxc3 {[%clk 0:00:05.9]} 36... Rxd5 {[%clk 0:00:24.4]} 37. Rxg6
{[%clk 0:00:06.5]} 37... Rb5+ {[%clk 0:00:23.1]} 38. Kc2 {[%clk 0:00:06.6]}
38... Qa4+ {[%clk 0:00:22.5]} 39. Kd3 {[%clk 0:00:05.5]} 39... Rd5+ {[%clk
0:00:19.8]} 40. Nd4 {[%clk 0:00:05.6]} 40... Rh3+ {[%clk 0:00:19.9]} 41. Kd2
{[%clk 0:00:05.7]} 41... Rxd4+ {[%clk 0:00:18.4]} 42. cxd4 {[%clk 0:00:05.7]}
42... Qxd4+ {[%clk 0:00:19.3]} 43. Kc2 {[%clk 0:00:02.8]} 43... Rc3+ {[%clk
0:00:19]} 44. Kb1 {[%clk 0:00:02.6]} 44... Qb4+ {[%clk 0:00:18.9]} 0-1

[Event "Late-Titled-Tuesday-Blitz-March-05-2024"]
[Site "Chess.com"]
[Date "2024.03.05"]
[Round "4"]
[White "Kombinator01"]
[Black "Agibileg"]
[Result "1-0"]
[WhiteElo "2506"]
[BlackElo "2643"]
[TimeControl "180+1"]
[EndTime "14:39:22 PST"]
[Termination "Kombinator01 won by resignation"]

1. d4 {[%clk 0:03:00.9]} 1... Nf6 {[%clk 0:03:00]} 2. Bf4 {[%clk 0:03:00.5]}
2... g6 {[%clk 0:02:59.1]} 3. Nc3 {[%clk 0:02:59.9]} 3... d5 {[%clk 0:02:59.5]}
4. Qd2 {[%clk 0:02:54.2]} 4... c5 {[%clk 0:02:46.4]} 5. Nb5 {[%clk 0:02:51.2]}
5... Na6 {[%clk 0:02:46.3]} 6. f3 {[%clk 0:02:47.3]} 6... Bg7 {[%clk 0:02:37.5]}
7. e3 {[%clk 0:02:47]} 7... O-O {[%clk 0:02:36.9]} 8. h4 {[%clk 0:02:44.9]} 8...
h5 {[%clk 0:02:30.2]} 9. Nh3 {[%clk 0:02:42.5]} 9... Bf5 {[%clk 0:02:16.6]} 10.
Bd3 {[%clk 0:02:36]} 10... Bxd3 {[%clk 0:02:14.7]} 11. Qxd3 {[%clk 0:02:24.9]}
11... Rc8 {[%clk 0:02:08.8]} 12. c3 {[%clk 0:02:21.2]} 12... Qb6 {[%clk
0:02:05]} 13. a4 {[%clk 0:02:18.7]} 13... Nb8 {[%clk 0:01:59.5]} 14. a5 {[%clk
0:02:05.9]} 14... Qa6 {[%clk 0:01:58.4]} 15. Qe2 {[%clk 0:02:01.1]} 15... cxd4
{[%clk 0:01:50.8]} 16. exd4 {[%clk 0:01:52.7]} 16... Nc6 {[%clk 0:00:52.5]} 17.
O-O {[%clk 0:01:51.4]} 17... Nd7 {[%clk 0:00:52.1]} 18. Rfe1 {[%clk 0:01:50.2]}
18... e5 {[%clk 0:00:50.8]} 19. dxe5 {[%clk 0:01:46.4]} 19... Ncxe5 {[%clk
0:00:45.6]} 20. Ng5 {[%clk 0:01:37.2]} 20... Rfe8 {[%clk 0:00:42.9]} 21. Qf1
{[%clk 0:01:29.5]} 21... Nc5 {[%clk 0:00:36.6]} 22. Nd4 {[%clk 0:01:16.4]} 22...
Ncd3 {[%clk 0:00:32.3]} 23. Bxe5 {[%clk 0:01:05.9]} 23... Bxe5 {[%clk
0:00:31.5]} 24. Red1 {[%clk 0:00:59.7]} 24... Bxd4+ {[%clk 0:00:25.7]} 25. cxd4
{[%clk 0:01:00.6]} 25... Nxb2 {[%clk 0:00:26.1]} 26. Qxa6 {[%clk 0:01:00.6]}
26... bxa6 {[%clk 0:00:27]} 27. Rdb1 {[%clk 0:00:58.8]} 27... Re2 {[%clk
0:00:21.4]} 28. Re1 {[%clk 0:00:59.5]} 28... Rd2 {[%clk 0:00:13.4]} 29. Rac1
{[%clk 0:00:55.7]} 29... Rxc1 {[%clk 0:00:13.5]} 30. Rxc1 {[%clk 0:00:56.6]}
30... Nc4 {[%clk 0:00:14.4]} 31. Rb1 {[%clk 0:00:54]} 31... Rxd4 {[%clk
0:00:12.5]} 32. Rb8+ {[%clk 0:00:54.5]} 32... Kg7 {[%clk 0:00:12.3]} 33. Rb7
{[%clk 0:00:55.4]} 33... Rd1+ {[%clk 0:00:10.8]} 34. Kh2 {[%clk 0:00:55.3]}
34... Nd6 {[%clk 0:00:09.3]} 35. Rd7 {[%clk 0:00:55.1]} 35... Nf5 {[%clk
0:00:06.4]} 36. Rxf7+ {[%clk 0:00:55.1]} 36... Kg8 {[%clk 0:00:06.8]} 37. Rxa7
{[%clk 0:00:54.6]} 37... d4 {[%clk 0:00:07.1]} 38. Ne4 {[%clk 0:00:53.6]} 38...
d3 {[%clk 0:00:06]} 39. Rxa6 {[%clk 0:00:53.3]} 39... Ne3 {[%clk 0:00:04]} 40.
Rxg6+ {[%clk 0:00:52.1]} 40... Kh7 {[%clk 0:00:04.2]} 41. Rd6 {[%clk 0:00:50]}
41... d2 {[%clk 0:00:02.7]} 42. Nxd2 {[%clk 0:00:48.6]} 42... Rxd2 {[%clk
0:00:02.8]} 43. Rxd2 {[%clk 0:00:48.6]} 43... Nf1+ {[%clk 0:00:03.2]} 44. Kg1
{[%clk 0:00:48.2]} 44... Nxd2 {[%clk 0:00:04.1]} 45. a6 {[%clk 0:00:48.7]} 45...
Nc4 {[%clk 0:00:04.4]} 46. a7 {[%clk 0:00:48.9]} 46... Nb6 {[%clk 0:00:04.9]}
47. Kf2 {[%clk 0:00:48.8]} 47... Kg6 {[%clk 0:00:05.5]} 48. g4 {[%clk
0:00:49.1]} 48... hxg4 {[%clk 0:00:02.6]} 49. fxg4 {[%clk 0:00:50]} 49... Na8
{[%clk 0:00:02.9]} 50. Kg3 {[%clk 0:00:50.3]} 50... Nb6 {[%clk 0:00:03.4]} 51.
Kf4 {[%clk 0:00:50.4]} 51... Kf6 {[%clk 0:00:03.9]} 52. g5+ {[%clk 0:00:50.7]}
52... Kg6 {[%clk 0:00:04.4]} 53. Kg4 {[%clk 0:00:51.3]} 1-0

[Event "Late-Titled-Tuesday-Blitz-March-05-2024"]
[Site "Chess.com"]
[Date "2024.03.05"]
[Round "4"]
[White "Yaacovn"]
[Black "SaqoChess_Twitch"]
[Result "0-1"]
[WhiteElo "2854"]
[BlackElo "2638"]
[TimeControl "180+1"]
[EndTime "14:39:24 PST"]
[Termination "SaqoChess_Twitch won by resignation"]

1. d4 {[%clk 0:03:00.9]} 1... d5 {[%clk 0:02:58.8]} 2. Nf3 {[%clk 0:02:58.7]}
2... e6 {[%clk 0:02:58.8]} 3. Bf4 {[%clk 0:02:58.1]} 3... Nf6 {[%clk 0:02:59.5]}
4. e3 {[%clk 0:02:57]} 4... Bd6 {[%clk 0:03:00.1]} 5. Bg3 {[%clk 0:02:56.5]}
5... O-O {[%clk 0:02:59.2]} 6. c4 {[%clk 0:02:55.5]} 6... b6 {[%clk 0:02:57.1]}
7. cxd5 {[%clk 0:02:54.9]} 7... exd5 {[%clk 0:02:57]} 8. Nc3 {[%clk 0:02:54.9]}
8... Bb7 {[%clk 0:02:57.5]} 9. Rc1 {[%clk 0:02:54.4]} 9... Ne4 {[%clk
0:02:57.2]} 10. Bd3 {[%clk 0:02:53.1]} 10... h6 {[%clk 0:02:48.5]} 11. Qc2
{[%clk 0:02:52]} 11... f5 {[%clk 0:02:46.4]} 12. Bxd6 {[%clk 0:02:51.5]} 12...
Qxd6 {[%clk 0:02:41]} 13. O-O {[%clk 0:02:51.8]} 13... c6 {[%clk 0:02:39.5]} 14.
Ne5 {[%clk 0:02:50.3]} 14... Nd7 {[%clk 0:02:39.4]} 15. f4 {[%clk 0:02:49]}
15... Nxe5 {[%clk 0:02:39.4]} 16. dxe5 {[%clk 0:02:46.2]} 16... Qc5 {[%clk
0:02:34.9]} 17. Nxe4 {[%clk 0:02:44.3]} 17... fxe4 {[%clk 0:02:28.2]} 18. Qxc5
{[%clk 0:02:42.7]} 18... bxc5 {[%clk 0:02:29.1]} 19. Be2 {[%clk 0:02:39.2]}
19... c4 {[%clk 0:02:29.4]} 20. b3 {[%clk 0:02:37.8]} 20... cxb3 {[%clk
0:02:29.8]} 21. axb3 {[%clk 0:02:38.7]} 21... a5 {[%clk 0:02:29.3]} 22. Rc5
{[%clk 0:02:35.4]} 22... a4 {[%clk 0:02:29.4]} 23. bxa4 {[%clk 0:02:32.1]} 23...
Rxa4 {[%clk 0:02:30.3]} 24. Rb1 {[%clk 0:02:32]} 24... Ba8 {[%clk 0:02:30.6]}
25. Bg4 {[%clk 0:02:19.6]} 25... d4 {[%clk 0:02:24.4]} 26. Be6+ {[%clk
0:02:16.9]} 26... Kh7 {[%clk 0:02:16.6]} 27. Rc4 {[%clk 0:02:16.5]} 27... Rxc4
{[%clk 0:02:08.4]} 28. Bxc4 {[%clk 0:02:17.4]} 28... dxe3 {[%clk 0:02:07.4]} 29.
g3 {[%clk 0:02:17.2]} 29... g5 {[%clk 0:02:07.7]} 30. Rf1 {[%clk 0:02:13]} 30...
gxf4 {[%clk 0:02:07.9]} 31. gxf4 {[%clk 0:02:03.7]} 31... Kg6 {[%clk 0:02:05.6]}
32. Be6 {[%clk 0:01:57.7]} 32... e2 {[%clk 0:01:59.8]} 33. f5+ {[%clk
0:01:57.4]} 33... Kg5 {[%clk 0:01:46.3]} 34. h4+ {[%clk 0:01:54.8]} 34... Kg4
{[%clk 0:01:34.9]} 35. Re1 {[%clk 0:01:53.9]} 35... Kf3 {[%clk 0:01:27.3]} 36.
f6 {[%clk 0:01:53.9]} 36... Kf4 {[%clk 0:01:17.9]} 37. f7 {[%clk 0:01:46.4]}
37... Kxe5 {[%clk 0:01:18.3]} 38. Bb3 {[%clk 0:01:37.7]} 38... c5 {[%clk
0:01:18.3]} 39. Rxe2 {[%clk 0:01:32.6]} 39... Bd5 {[%clk 0:01:18.9]} 40. Bxd5
{[%clk 0:01:29.8]} 40... Kxd5 {[%clk 0:01:19.8]} 41. Rf2 {[%clk 0:01:29.7]}
41... Ke6 {[%clk 0:01:12.7]} 42. Rc2 {[%clk 0:01:25.3]} 42... Kd5 {[%clk
0:01:00.2]} 43. Rf2 {[%clk 0:01:24.3]} 43... e3 {[%clk 0:00:57.6]} 44. Rf6
{[%clk 0:01:20.4]} 44... Ke5 {[%clk 0:00:55.9]} 45. Rf3 {[%clk 0:01:15.1]} 45...
Ke4 {[%clk 0:00:52.7]} 46. Rf6 {[%clk 0:01:15.2]} 46... c4 {[%clk 0:00:46.2]}
47. Kf1 {[%clk 0:01:13]} 47... c3 {[%clk 0:00:43.1]} 48. Ke2 {[%clk 0:01:12.8]}
48... c2 {[%clk 0:00:43.5]} 49. Rc6 {[%clk 0:01:10.5]} 49... Rxf7 {[%clk
0:00:41.3]} 50. Rc4+ {[%clk 0:01:04.2]} 50... Kd5 {[%clk 0:00:39]} 51. Rc8
{[%clk 0:01:03.1]} 51... Kd4 {[%clk 0:00:32.3]} 52. Rd8+ {[%clk 0:01:00]} 52...
Kc3 {[%clk 0:00:22.8]} 53. Rc8+ {[%clk 0:01:00]} 53... Kb2 {[%clk 0:00:23.1]}
54. Rb8+ {[%clk 0:01:00.1]} 54... Kc1 {[%clk 0:00:22.3]} 55. Rb6 {[%clk
0:00:57.5]} 55... Rf4 {[%clk 0:00:20]} 56. h5 {[%clk 0:00:53.6]} 56... Rh4
{[%clk 0:00:18.3]} 57. Rxh6 {[%clk 0:00:42.8]} 57... Kb2 {[%clk 0:00:17.9]} 58.
Rb6+ {[%clk 0:00:42.3]} 58... Kc3 {[%clk 0:00:18.2]} 59. Rc6+ {[%clk 0:00:41.2]}
59... Rc4 {[%clk 0:00:18.7]} 0-1

[Event "Late-Titled-Tuesday-Blitz-March-05-2024"]
[Site "Chess.com"]
[Date "2024.03.05"]
[Round "4"]
[White "grzechu96"]
[Black "bipe137"]
[Result "1-0"]
[WhiteElo "2744"]
[BlackElo "2550"]
[TimeControl "180+1"]
[EndTime "14:39:24 PST"]
[Termination "grzechu96 won by checkmate"]

1. e4 {[%clk 0:03:00.2]} 1... c5 {[%clk 0:02:59.9]} 2. Nf3 {[%clk 0:02:58.3]}
2... e6 {[%clk 0:02:59.6]} 3. g3 {[%clk 0:02:55]} 3... Nc6 {[%clk 0:02:59.2]} 4.
Bg2 {[%clk 0:02:54.8]} 4... Nf6 {[%clk 0:02:59.5]} 5. Qe2 {[%clk 0:02:54.6]}
5... Be7 {[%clk 0:02:58.4]} 6. O-O {[%clk 0:02:47.8]} 6... O-O {[%clk 0:02:58]}
7. e5 {[%clk 0:02:46]} 7... Nd5 {[%clk 0:02:57.5]} 8. c4 {[%clk 0:02:44.5]} 8...
Nc7 {[%clk 0:02:53.4]} 9. Rd1 {[%clk 0:02:44.7]} 9... d5 {[%clk 0:02:30.8]} 10.
d4 {[%clk 0:01:52.1]} 10... cxd4 {[%clk 0:02:23.8]} 11. Nxd4 {[%clk 0:01:52.4]}
11... Nxd4 {[%clk 0:02:23.8]} 12. Rxd4 {[%clk 0:01:53.3]} 12... b6 {[%clk
0:02:16]} 13. Nc3 {[%clk 0:01:52.5]} 13... Bb7 {[%clk 0:02:09.8]} 14. Be3 {[%clk
0:01:11]} 14... Bc5 {[%clk 0:01:26.3]} 15. Rdd1 {[%clk 0:01:10.6]} 15... Qd7
{[%clk 0:01:07.4]} 16. Bxc5 {[%clk 0:00:59.4]} 16... bxc5 {[%clk 0:01:07.3]} 17.
Ne4 {[%clk 0:00:59.9]} 17... Qe7 {[%clk 0:00:50.5]} 18. Nd6 {[%clk 0:00:58.1]}
18... Ba6 {[%clk 0:00:50.8]} 19. Qe3 {[%clk 0:00:44.2]} 19... d4 {[%clk
0:00:43.9]} 20. Qa3 {[%clk 0:00:44.5]} 20... Rab8 {[%clk 0:00:31.8]} 21. b3
{[%clk 0:00:39.6]} 21... Rb4 {[%clk 0:00:29.2]} 22. Qa5 {[%clk 0:00:39.8]} 22...
f6 {[%clk 0:00:09.1]} 23. Qxc5 {[%clk 0:00:39.9]} 23... Rb6 {[%clk 0:00:09.8]}
24. Qxd4 {[%clk 0:00:36.1]} 24... fxe5 {[%clk 0:00:09.2]} 25. Qxe5 {[%clk
0:00:36.2]} 25... Ne8 {[%clk 0:00:05.7]} 26. c5 {[%clk 0:00:27.1]} 26... Rb4
{[%clk 0:00:03.8]} 27. c6 {[%clk 0:00:21.1]} 27... Nc7 {[%clk 0:00:04.1]} 28.
Ne4 {[%clk 0:00:14.4]} 28... Qf7 {[%clk 0:00:03.9]} 29. Rd7 {[%clk 0:00:09.3]}
29... Rxe4 {[%clk 0:00:03.1]} 30. Qxe4 {[%clk 0:00:04.8]} 30... Qxf2+ {[%clk
0:00:03.7]} 31. Kh1 {[%clk 0:00:05.4]} 31... Nd5 {[%clk 0:00:03.5]} 32. Qe5
{[%clk 0:00:04.8]} 32... Kh8 {[%clk 0:00:01.6]} 33. Qxg7# {[%clk 0:00:04.9]} 1-0

[Event "Late-Titled-Tuesday-Blitz-March-05-2024"]
[Site "Chess.com"]
[Date "2024.03.05"]
[Round "4"]
[White "Igor_Lysyj"]
[Black "DanielNaroditsky"]
[Result "1-0"]
[WhiteElo "2843"]
[BlackElo "3089"]
[TimeControl "180+1"]
[EndTime "14:39:25 PST"]
[Termination "Igor_Lysyj won by resignation"]

1. d4 {[%clk 0:02:59.9]} 1... Nf6 {[%clk 0:02:59.8]} 2. c4 {[%clk 0:02:59.9]}
2... g6 {[%clk 0:02:59.8]} 3. Nc3 {[%clk 0:02:59.4]} 3... Bg7 {[%clk 0:03:00.1]}
4. e4 {[%clk 0:02:59.1]} 4... d6 {[%clk 0:03:00.6]} 5. Nf3 {[%clk 0:02:59.3]}
5... O-O {[%clk 0:03:00.5]} 6. Be2 {[%clk 0:02:59.6]} 6... Na6 {[%clk
0:03:01.3]} 7. Be3 {[%clk 0:02:58.9]} 7... e5 {[%clk 0:03:00.2]} 8. O-O {[%clk
0:02:58.5]} 8... Qe7 {[%clk 0:02:58.9]} 9. Nd5 {[%clk 0:02:52]} 9... Nxd5 {[%clk
0:02:38.3]} 10. cxd5 {[%clk 0:02:51.6]} 10... exd4 {[%clk 0:02:37.5]} 11. Bxd4
{[%clk 0:02:50.6]} 11... Qxe4 {[%clk 0:02:37.1]} 12. Bxg7 {[%clk 0:02:50.6]}
12... Kxg7 {[%clk 0:02:37.7]} 13. Re1 {[%clk 0:02:50]} 13... Nc5 {[%clk
0:02:16.3]} 14. Rc1 {[%clk 0:02:49.3]} 14... a5 {[%clk 0:02:05.9]} 15. Bf1
{[%clk 0:02:28]} 15... Qf4 {[%clk 0:02:02.2]} 16. Rc4 {[%clk 0:02:25.9]} 16...
Qf6 {[%clk 0:02:01.7]} 17. Qd2 {[%clk 0:02:23.5]} 17... Bf5 {[%clk 0:01:46.6]}
18. Rf4 {[%clk 0:01:56.4]} 18... Qd8 {[%clk 0:01:08.7]} 19. g4 {[%clk
0:01:53.1]} 19... Bd7 {[%clk 0:01:05.6]} 20. Qd4+ {[%clk 0:01:26.6]} 20... Kg8
{[%clk 0:01:05.6]} 21. h4 {[%clk 0:01:13.8]} 21... f5 {[%clk 0:00:55.8]} 22.
gxf5 {[%clk 0:00:48.7]} 22... Bxf5 {[%clk 0:00:50.3]} 23. Ng5 {[%clk 0:00:45.4]}
23... Qf6 {[%clk 0:00:38.2]} 24. Qxf6 {[%clk 0:00:40.2]} 24... Rxf6 {[%clk
0:00:39.1]} 25. Re7 {[%clk 0:00:40.3]} 25... h6 {[%clk 0:00:33.4]} 26. Ne6
{[%clk 0:00:36.3]} 26... Nxe6 {[%clk 0:00:24.2]} 27. dxe6 {[%clk 0:00:35.6]}
27... c6 {[%clk 0:00:20.9]} 28. Bh3 {[%clk 0:00:26.9]} 28... Raf8 {[%clk
0:00:14.1]} 29. Bxf5 {[%clk 0:00:25.8]} 29... gxf5 {[%clk 0:00:08.3]} 30. h5
{[%clk 0:00:22.8]} 30... Kh8 {[%clk 0:00:05.4]} 31. Kf1 {[%clk 0:00:21.1]} 31...
d5 {[%clk 0:00:04.2]} 32. b4 {[%clk 0:00:19.1]} 32... a4 {[%clk 0:00:03.2]} 33.
b5 {[%clk 0:00:18.4]} 33... cxb5 {[%clk 0:00:04.1]} 34. Rb4 {[%clk 0:00:17.8]}
34... f4 {[%clk 0:00:02.8]} 35. Rxb5 {[%clk 0:00:17.8]} 35... Rb8 {[%clk
0:00:02.6]} 36. Rxd5 {[%clk 0:00:17.3]} 36... Kg8 {[%clk 0:00:02.4]} 37. Rdd7
{[%clk 0:00:16.9]} 37... Kf8 {[%clk 0:00:01.9]} 38. Rh7 {[%clk 0:00:15.5]} 38...
Kg8 {[%clk 0:00:01.7]} 39. Rdg7+ {[%clk 0:00:15.2]} 39... Kf8 {[%clk 0:00:02.4]}
40. e7+ {[%clk 0:00:15.3]} 1-0

[Event "Late-Titled-Tuesday-Blitz-March-05-2024"]
[Site "Chess.com"]
[Date "2024.03.05"]
[Round "4"]
[White "Sokoloco"]
[Black "thesupera12"]
[Result "1-0"]
[WhiteElo "2755"]
[BlackElo "2494"]
[TimeControl "180+1"]
[EndTime "14:39:25 PST"]
[Termination "Sokoloco won by resignation"]

1. b3 {[%clk 0:03:00.9]} 1... a5 {[%clk 0:02:55.8]} 2. Bb2 {[%clk 0:03:00.9]}
2... a4 {[%clk 0:02:55.9]} 3. b4 {[%clk 0:03:01.5]} 3... Nf6 {[%clk 0:02:54.8]}
4. a3 {[%clk 0:03:01.6]} 4... e6 {[%clk 0:02:53.8]} 5. Nf3 {[%clk 0:03:01.2]}
5... c5 {[%clk 0:02:52.2]} 6. b5 {[%clk 0:02:59.7]} 6... b6 {[%clk 0:02:51.8]}
7. c4 {[%clk 0:02:59.7]} 7... Bb7 {[%clk 0:02:52.2]} 8. d3 {[%clk 0:02:48.6]}
8... d5 {[%clk 0:02:50.7]} 9. e3 {[%clk 0:02:48.6]} 9... Be7 {[%clk 0:02:49.8]}
10. Be2 {[%clk 0:02:48.6]} 10... O-O {[%clk 0:02:50.4]} 11. O-O {[%clk
0:02:48.8]} 11... Nbd7 {[%clk 0:02:49.6]} 12. Nc3 {[%clk 0:02:49]} 12... Qc7
{[%clk 0:02:44.3]} 13. Nxa4 {[%clk 0:02:45.1]} 13... dxc4 {[%clk 0:02:44.5]} 14.
dxc4 {[%clk 0:02:44.8]} 14... Rfd8 {[%clk 0:02:45]} 15. Qc2 {[%clk 0:02:37.2]}
15... Be4 {[%clk 0:02:41]} 16. Qb3 {[%clk 0:02:37.1]} 16... Ng4 {[%clk
0:02:30.3]} 17. g3 {[%clk 0:02:28.4]} 17... Qb7 {[%clk 0:02:29.1]} 18. Nd2
{[%clk 0:02:20.5]} 18... Ndf6 {[%clk 0:01:50.8]} 19. Nxe4 {[%clk 0:02:14.8]}
19... Qxe4 {[%clk 0:01:49.1]} 20. Nxb6 {[%clk 0:02:06.9]} 20... Rab8 {[%clk
0:01:48]} 21. Na4 {[%clk 0:01:48.7]} 21... h5 {[%clk 0:01:47.2]} 22. Rad1 {[%clk
0:01:31.3]} 22... h4 {[%clk 0:01:43.6]} 23. Bxf6 {[%clk 0:01:31.6]} 23... Bxf6
{[%clk 0:01:28]} 24. Nxc5 {[%clk 0:01:05.2]} 24... Qg6 {[%clk 0:01:22]} 25. Nd7
{[%clk 0:00:57.3]} 25... Rxd7 {[%clk 0:01:09.8]} 26. Rxd7 {[%clk 0:00:58.2]}
26... hxg3 {[%clk 0:01:02.8]} 27. hxg3 {[%clk 0:00:57.7]} 27... Ne5 {[%clk
0:00:29.3]} 28. Rd4 {[%clk 0:00:51.5]} 28... Qh6 {[%clk 0:00:14.8]} 29. Kg2
{[%clk 0:00:46.9]} 29... Ng6 {[%clk 0:00:14.1]} 30. Rg4 {[%clk 0:00:43.3]} 30...
Ne5 {[%clk 0:00:12.4]} 31. Rh1 {[%clk 0:00:39.9]} 31... Nxg4 {[%clk 0:00:12.8]}
32. Rxh6 {[%clk 0:00:40.4]} 32... Nxh6 {[%clk 0:00:13.7]} 33. c5 {[%clk
0:00:29.1]} 33... Nf5 {[%clk 0:00:14.1]} 34. b6 {[%clk 0:00:26.4]} 34... Ne7
{[%clk 0:00:13.4]} 35. Bf3 {[%clk 0:00:26.2]} 35... Be5 {[%clk 0:00:12.6]} 36.
a4 {[%clk 0:00:21.5]} 36... g5 {[%clk 0:00:13]} 37. c6 {[%clk 0:00:20.3]} 37...
Kg7 {[%clk 0:00:13]} 38. a5 {[%clk 0:00:16.6]} 38... g4 {[%clk 0:00:10]} 39. Be4
{[%clk 0:00:16.1]} 39... f5 {[%clk 0:00:09.8]} 40. Qxe6 {[%clk 0:00:15.9]} 40...
Bf6 {[%clk 0:00:06.4]} 41. Bxf5 {[%clk 0:00:16]} 41... Nxc6 {[%clk 0:00:04.9]}
42. Qxc6 {[%clk 0:00:16]} 1-0